[Event "Titled Tuesday Blitz May 30 Late 2023"]
[White "Adla, Diego"]
[Black "Dubreuil, Julien"]
[WhiteFideId "100072"]
[BlackFideId "621285"]
[WhiteElo "2377"]
[BlackElo "2294"]
[Result "1-0"]
[Round "01"]
[TimeControl "180+2"]
[Date "2023.05.31"]
[WhiteClock "0:00:48"]
[BlackClock "0:00:04"]

1. e4 {[%clk 0:03:00]}  c5 {[%clk 0:02:59]} 2. Nf3 {[%clk 0:02:58]}  Nc6 {[%clk 0:03:00]} 3. d4 {[%clk 0:02:58]}  cxd4 {[%clk 0:03:01]} 4. Nxd4 {[%clk 0:02:58]}  g6 {[%clk 0:03:01]} 5. c4 {[%clk 0:02:57]}  Bg7 {[%clk 0:03:01]} 6. Be3 {[%clk 0:02:57]}  Nf6 {[%clk 0:03:01]} 7. Nc3 {[%clk 0:02:57]}  O-O {[%clk 0:02:58]} 8. Be2 {[%clk 0:02:56]}  d6 {[%clk 0:02:57]} 9. O-O {[%clk 0:02:56]}  Bd7 {[%clk 0:02:56]} 10. h3 {[%clk 0:02:54]}  Nxd4 {[%clk 0:02:54]} 11. Bxd4 {[%clk 0:02:55]}  a5 {[%clk 0:02:54]} 12. Qc2 {[%clk 0:02:16]}  Bc6 {[%clk 0:02:52]} 13. Rad1 {[%clk 0:02:13]}  Qc7 {[%clk 0:02:23]} 14. Nd5 {[%clk 0:01:59]}  Bxd5 {[%clk 0:02:19]} 15. exd5 {[%clk 0:02:00]}  b5 {[%clk 0:02:16]} 16. c5 {[%clk 0:01:57]}  dxc5 {[%clk 0:02:13]} 17. Qxc5 {[%clk 0:01:55]}  Qxc5 {[%clk 0:02:04]} 18. Bxc5 {[%clk 0:01:55]}  Rfb8 {[%clk 0:01:46]} 19. Bxe7 {[%clk 0:01:54]}  Nd7 {[%clk 0:01:31]} 20. Rd2 {[%clk 0:01:50]}  b4 {[%clk 0:01:25]} 21. f4 {[%clk 0:01:40]}  b3 {[%clk 0:01:21]} 22. a3 {[%clk 0:01:36]}  Rc8 {[%clk 0:01:10]} 23. Rfd1 {[%clk 0:01:35]}  Re8 {[%clk 0:01:01]} 24. d6 {[%clk 0:01:35]}  Rab8 {[%clk 0:00:58]} 25. Bc4 {[%clk 0:01:32]}  Nc5 {[%clk 0:00:58]} 26. d7 {[%clk 0:01:29]}  Rxe7 {[%clk 0:00:56]} 27. d8=Q+ {[%clk 0:01:29]}  Rxd8 {[%clk 0:00:56]} 28. Rxd8+ {[%clk 0:01:29]}  Bf8 {[%clk 0:00:57]} 29. Rc8 {[%clk 0:01:29]}  Re4 {[%clk 0:00:33]} 30. Bb5 {[%clk 0:01:22]}  Kg7 {[%clk 0:00:29]} 31. Rd5 {[%clk 0:01:18]}  Ne6 {[%clk 0:00:22]} 32. f5 {[%clk 0:01:15]}  gxf5 {[%clk 0:00:19]} 33. Rxf5 {[%clk 0:01:15]}  Be7 {[%clk 0:00:18]} 34. Bc4 {[%clk 0:01:11]}  Ng5 {[%clk 0:00:15]} 35. Bxb3 {[%clk 0:01:09]}  Kg6 {[%clk 0:00:14]} 36. Rxa5 {[%clk 0:01:07]}  Bf6 {[%clk 0:00:15]} 37. Rd5 {[%clk 0:01:02]}  Bxb2 {[%clk 0:00:14]} 38. a4 {[%clk 0:01:01]}  Bd4+ {[%clk 0:00:14]} 39. Kh2 {[%clk 0:00:58]}  Be5+ {[%clk 0:00:15]} 40. g3 {[%clk 0:00:58]}  Re2+ {[%clk 0:00:14]} 41. Kg1 {[%clk 0:00:58]}  Bxg3 {[%clk 0:00:14]} 42. Rc2 {[%clk 0:00:53]}  Nf3+ {[%clk 0:00:14]} 43. Kf1 {[%clk 0:00:53]}  Re3 {[%clk 0:00:05]} 44. Bc4 {[%clk 0:00:51]}  Ra3 {[%clk 0:00:05]} 45. Rd3 {[%clk 0:00:50]}  Ne1 {[%clk 0:00:05]} 46. Rxa3 {[%clk 0:00:47]}  Nxc2 {[%clk 0:00:04]} 47. Rxg3+ {[%clk 0:00:48]} 1-0


[Site "https://www.chess.com"]

[Event "Titled Tuesday Blitz May 30 Late 2023"]
[White "KVAIDAN"]
[Black "Bitoon, Richard"]
[BlackFideId "5201110"]
[WhiteElo "2292"]
[BlackElo "2374"]
[Result "0-1"]
[Round "01"]
[TimeControl "180+2"]
[Date "2023.05.31"]
[WhiteClock "0:02:01"]
[BlackClock "0:01:49"]

1. f4 {[%clk 0:02:57]}  b6 {[%clk 0:02:57]} 2. Nf3 {[%clk 0:02:57]}  Bb7 {[%clk 0:02:58]} 3. e3 {[%clk 0:02:57]}  e6 {[%clk 0:02:59]} 4. b3 {[%clk 0:02:57]}  Nf6 {[%clk 0:03:00]} 5. Bb2 {[%clk 0:02:57]}  Be7 {[%clk 0:03:01]} 6. Bd3 {[%clk 0:02:57]}  O-O {[%clk 0:03:02]} 7. O-O {[%clk 0:02:57]}  d5 {[%clk 0:03:02]} 8. Ne5 {[%clk 0:02:57]}  Nbd7 {[%clk 0:03:00]} 9. Rf3 {[%clk 0:02:57]}  Ne4 {[%clk 0:02:49]} 10. Rh3 {[%clk 0:02:57]}  g6 {[%clk 0:02:38]} 11. Nxd7 {[%clk 0:02:53]}  Qxd7 {[%clk 0:02:38]} 12. Bxe4 {[%clk 0:02:53]}  e5 {[%clk 0:02:02]} 13. Bf3 {[%clk 0:02:33]}  e4 {[%clk 0:01:58]} 14. Be2 {[%clk 0:02:33]}  c5 {[%clk 0:01:57]} 15. Ba6 {[%clk 0:02:04]}  Bxa6 {[%clk 0:01:51]} 16. Qh5 {[%clk 0:02:03]}  gxh5 {[%clk 0:01:51]} 17. Rg3+ {[%clk 0:02:03]}  Qg4 {[%clk 0:01:51]} 18. Rxg4+ {[%clk 0:02:04]}  hxg4 {[%clk 0:01:52]} 19. Nc3 {[%clk 0:02:04]}  Rad8 {[%clk 0:01:51]} 20. Na4 {[%clk 0:02:01]}  f5 {[%clk 0:01:49]} 0-1


[Site "https://www.chess.com"]

[Event "Titled Tuesday Blitz May 30 Late 2023"]
[White "koncheto"]
[Black "The_Straightforward_Rook"]
[WhiteElo "2594"]
[BlackElo "2285"]
[Result "1-0"]
[Round "01"]
[TimeControl "180+2"]
[Date "2023.05.31"]
[WhiteClock "0:00:05"]
[BlackClock "0:00:18"]

1. e4 {[%clk 0:02:59]}  c5 {[%clk 0:02:59]} 2. Nf3 {[%clk 0:02:58]}  Nc6 {[%clk 0:02:59]} 3. d4 {[%clk 0:02:58]}  cxd4 {[%clk 0:03:00]} 4. Nxd4 {[%clk 0:02:59]}  e5 {[%clk 0:03:00]} 5. Nb5 {[%clk 0:02:58]}  d6 {[%clk 0:03:00]} 6. c4 {[%clk 0:02:54]}  Be7 {[%clk 0:02:57]} 7. N1c3 {[%clk 0:02:51]}  a6 {[%clk 0:02:57]} 8. Na3 {[%clk 0:02:52]}  f5 {[%clk 0:02:58]} 9. exf5 {[%clk 0:02:37]}  Bxf5 {[%clk 0:02:59]} 10. Bd3 {[%clk 0:02:37]}  Be6 {[%clk 0:02:58]} 11. O-O {[%clk 0:02:37]}  Nf6 {[%clk 0:02:58]} 12. f3 {[%clk 0:02:23]}  O-O {[%clk 0:02:57]} 13. Be3 {[%clk 0:02:23]}  Kh8 {[%clk 0:02:56]} 14. Nc2 {[%clk 0:02:20]}  Rc8 {[%clk 0:02:55]} 15. b3 {[%clk 0:02:14]}  Qe8 {[%clk 0:02:50]} 16. Ne4 {[%clk 0:02:11]}  Nxe4 {[%clk 0:02:44]} 17. Bxe4 {[%clk 0:02:08]}  b5 {[%clk 0:02:44]} 18. cxb5 {[%clk 0:02:08]}  axb5 {[%clk 0:02:45]} 19. Qd3 {[%clk 0:01:59]}  Qh5 {[%clk 0:02:29]} 20. Qxb5 {[%clk 0:01:48]}  Nd8 {[%clk 0:01:23]} 21. f4 {[%clk 0:01:33]}  d5 {[%clk 0:01:21]} 22. Bxd5 {[%clk 0:01:02]}  Rxc2 {[%clk 0:01:12]} 23. Bxe6 {[%clk 0:00:58]}  Nxe6 {[%clk 0:01:13]} 24. fxe5 {[%clk 0:00:25]}  Qg4 {[%clk 0:00:56]} 25. Rxf8+ {[%clk 0:00:17]}  Bxf8 {[%clk 0:00:57]} 26. Qf1 {[%clk 0:00:16]}  h6 {[%clk 0:00:51]} 27. a4 {[%clk 0:00:16]}  Bc5 {[%clk 0:00:43]} 28. Bxc5 {[%clk 0:00:15]}  Nxc5 {[%clk 0:00:44]} 29. a5 {[%clk 0:00:11]}  Qd4+ {[%clk 0:00:39]} 30. Kh1 {[%clk 0:00:10]}  Rf2 {[%clk 0:00:39]} 31. Qg1 {[%clk 0:00:04]}  Nxb3 {[%clk 0:00:33]} 32. Rd1 {[%clk 0:00:03]}  Qa7 {[%clk 0:00:21]} 33. a6 {[%clk 0:00:02]}  Nd2 {[%clk 0:00:19]} 34. Rxd2 {[%clk 0:00:02]}  Rxd2 {[%clk 0:00:15]} 35. Qxa7 {[%clk 0:00:03]}  Rd1+ {[%clk 0:00:14]} 36. Qg1 {[%clk 0:00:03]}  Rxg1+ {[%clk 0:00:14]} 37. Kxg1 {[%clk 0:00:04]}  Kh7 {[%clk 0:00:15]} 38. a7 {[%clk 0:00:05]}  Kg6 {[%clk 0:00:16]} 39. a8=Q {[%clk 0:00:06]}  Kf5 {[%clk 0:00:17]} 40. Qd5 {[%clk 0:00:06]}  Kg5 {[%clk 0:00:16]} 41. Qf7 {[%clk 0:00:06]}  g6 {[%clk 0:00:16]} 42. Qf6+ {[%clk 0:00:07]}  Kh5 {[%clk 0:00:16]} 43. h3 {[%clk 0:00:05]}  g5 {[%clk 0:00:17]} 44. Qf5 {[%clk 0:00:04]}  Kh4 {[%clk 0:00:18]} 45. Qg4# {[%clk 0:00:05]} 1-0


[Site "https://www.chess.com"]

[Event "Titled Tuesday Blitz May 30 Late 2023"]
[White "Leschinsky, Gary"]
[Black "Pinheiro, Iung Alicio de O."]
[WhiteFideId "30951321"]
[BlackFideId "2104350"]
[WhiteElo "1855"]
[BlackElo "2283"]
[Result "0-1"]
[Round "01"]
[TimeControl "180+2"]
[Date "2023.05.31"]
[WhiteClock "0:01:54"]
[BlackClock "0:01:21"]

1. d4 {[%clk 0:03:00]}  Nf6 {[%clk 0:02:52]} 2. c4 {[%clk 0:03:01]}  e6 {[%clk 0:02:51]} 3. Nc3 {[%clk 0:03:01]}  Bb4 {[%clk 0:02:50]} 4. f3 {[%clk 0:03:01]}  c5 {[%clk 0:02:49]} 5. d5 {[%clk 0:03:01]}  b5 {[%clk 0:02:48]} 6. e4 {[%clk 0:02:56]}  bxc4 {[%clk 0:02:43]} 7. Bxc4 {[%clk 0:02:54]}  Ba6 {[%clk 0:02:42]} 8. Bxa6 {[%clk 0:02:44]}  Nxa6 {[%clk 0:02:42]} 9. dxe6 {[%clk 0:02:42]}  fxe6 {[%clk 0:02:32]} 10. Ne2 {[%clk 0:02:42]}  O-O {[%clk 0:02:31]} 11. O-O {[%clk 0:02:41]}  d5 {[%clk 0:02:30]} 12. exd5 {[%clk 0:02:41]}  exd5 {[%clk 0:02:29]} 13. Bg5 {[%clk 0:02:42]}  Nc7 {[%clk 0:02:22]} 14. Rc1 {[%clk 0:02:39]}  d4 {[%clk 0:01:52]} 15. Ne4 {[%clk 0:02:37]}  d3 {[%clk 0:01:44]} 16. Bxf6 {[%clk 0:02:09]}  gxf6 {[%clk 0:01:40]} 17. Qb3+ {[%clk 0:02:01]}  Qd5 {[%clk 0:01:22]} 18. Rfd1 {[%clk 0:01:54]}  Qxb3 {[%clk 0:01:21]} 0-1


[Site "https://www.chess.com"]

[Event "Titled Tuesday Blitz May 30 Late 2023"]
[White "Andreassen, Lars"]
[Black "Prado Lobo, Jonas"]
[WhiteFideId "1504878"]
[BlackFideId "32050666"]
[WhiteElo "2119"]
[BlackElo "2322"]
[Result "0-1"]
[Round "01"]
[TimeControl "180+2"]
[Date "2023.05.31"]
[WhiteClock "0:00:31"]
[BlackClock "0:00:15"]

1. d4 {[%clk 0:03:00]}  Nf6 {[%clk 0:02:59]} 2. Nf3 {[%clk 0:03:00]}  g6 {[%clk 0:02:58]} 3. Nc3 {[%clk 0:02:59]}  d5 {[%clk 0:02:53]} 4. Bg5 {[%clk 0:02:57]}  Bg7 {[%clk 0:02:52]} 5. Bxf6 {[%clk 0:02:56]}  Bxf6 {[%clk 0:02:53]} 6. e4 {[%clk 0:02:56]}  dxe4 {[%clk 0:02:47]} 7. Nxe4 {[%clk 0:02:57]}  Bg7 {[%clk 0:02:47]} 8. Bc4 {[%clk 0:02:58]}  O-O {[%clk 0:02:47]} 9. O-O {[%clk 0:02:57]}  b6 {[%clk 0:02:42]} 10. Re1 {[%clk 0:02:56]}  Bb7 {[%clk 0:02:42]} 11. c3 {[%clk 0:02:56]}  Nd7 {[%clk 0:02:38]} 12. Qe2 {[%clk 0:02:55]}  h6 {[%clk 0:02:34]} 13. Rad1 {[%clk 0:02:54]}  Re8 {[%clk 0:02:29]} 14. h4 {[%clk 0:02:42]}  Qc8 {[%clk 0:02:19]} 15. h5 {[%clk 0:02:41]}  gxh5 {[%clk 0:02:08]} 16. Nh4 {[%clk 0:02:24]}  Bxe4 {[%clk 0:01:35]} 17. Qxh5 {[%clk 0:02:13]}  e6 {[%clk 0:01:27]} 18. Rxe4 {[%clk 0:02:03]}  Nf6 {[%clk 0:01:27]} 19. Qe2 {[%clk 0:02:02]}  Nxe4 {[%clk 0:01:27]} 20. Qxe4 {[%clk 0:02:02]}  Qd8 {[%clk 0:01:17]} 21. g3 {[%clk 0:01:50]}  Qg5 {[%clk 0:01:11]} 22. Nf3 {[%clk 0:01:46]}  Qh5 {[%clk 0:01:06]} 23. Kg2 {[%clk 0:01:43]}  Rad8 {[%clk 0:00:54]} 24. Rh1 {[%clk 0:01:41]}  Qf5 {[%clk 0:00:44]} 25. Qc6 {[%clk 0:01:20]}  Re7 {[%clk 0:00:37]} 26. Rh4 {[%clk 0:01:11]}  Qc2 {[%clk 0:00:28]} 27. Rg4 {[%clk 0:01:02]}  Qxb2 {[%clk 0:00:25]} 28. Ne5 {[%clk 0:00:54]}  Qxc3 {[%clk 0:00:20]} 29. Nxf7 {[%clk 0:00:35]}  Rxf7 {[%clk 0:00:17]} 30. Qxe6 {[%clk 0:00:30]}  Qf3+ {[%clk 0:00:17]} 31. Kh3 {[%clk 0:00:31]}  Qh1# {[%clk 0:00:15]} 0-1


[Site "https://www.chess.com"]

[Event "Titled Tuesday Blitz May 30 Late 2023"]
[White "Novik, Maxim"]
[Black "Schut, Han"]
[WhiteFideId "4102924"]
[BlackFideId "1005561"]
[WhiteElo "2287"]
[BlackElo "2024"]
[Result "1-0"]
[Round "01"]
[TimeControl "180+2"]
[Date "2023.05.31"]
[WhiteClock "0:01:24"]
[BlackClock "0:00:10"]

1. e4 {[%clk 0:02:58]}  c5 {[%clk 0:02:57]} 2. Nc3 {[%clk 0:02:56]}  Nc6 {[%clk 0:02:55]} 3. Bb5 {[%clk 0:02:56]}  Nd4 {[%clk 0:02:55]} 4. Nf3 {[%clk 0:02:55]}  Nxb5 {[%clk 0:02:54]} 5. Nxb5 {[%clk 0:02:54]}  a6 {[%clk 0:02:50]} 6. Nc3 {[%clk 0:02:54]}  g6 {[%clk 0:02:47]} 7. d4 {[%clk 0:02:54]}  Bg7 {[%clk 0:02:46]} 8. dxc5 {[%clk 0:02:37]}  Qa5 {[%clk 0:02:45]} 9. Be3 {[%clk 0:02:35]}  Bxc3+ {[%clk 0:02:40]} 10. bxc3 {[%clk 0:02:34]}  Qxc3+ {[%clk 0:02:41]} 11. Ke2 {[%clk 0:02:21]}  Nf6 {[%clk 0:02:39]} 12. Bd4 {[%clk 0:02:21]}  Qc4+ {[%clk 0:02:36]} 13. Qd3 {[%clk 0:02:21]}  Qe6 {[%clk 0:02:24]} 14. Bxf6 {[%clk 0:01:52]}  Qxf6 {[%clk 0:02:14]} 15. Qd4 {[%clk 0:01:51]}  Qxd4 {[%clk 0:02:10]} 16. Nxd4 {[%clk 0:01:51]}  f6 {[%clk 0:02:00]} 17. Rab1 {[%clk 0:01:50]}  Kf7 {[%clk 0:02:00]} 18. Rhd1 {[%clk 0:01:48]}  Rd8 {[%clk 0:01:58]} 19. Nb3 {[%clk 0:01:41]}  Ke6 {[%clk 0:01:55]} 20. Na5 {[%clk 0:01:41]}  d6 {[%clk 0:01:24]} 21. Rb6 {[%clk 0:01:40]}  Ke5 {[%clk 0:01:16]} 22. Ke3 {[%clk 0:01:38]}  g5 {[%clk 0:01:09]} 23. Nc4+ {[%clk 0:01:36]}  Ke6 {[%clk 0:01:09]} 24. cxd6 {[%clk 0:01:36]}  exd6 {[%clk 0:01:08]} 25. Rdxd6+ {[%clk 0:01:35]}  Rxd6 {[%clk 0:01:08]} 26. Nxd6 {[%clk 0:01:34]}  Kd7 {[%clk 0:01:01]} 27. c4 {[%clk 0:01:33]}  Kc7 {[%clk 0:01:01]} 28. c5 {[%clk 0:01:33]}  Rb8 {[%clk 0:01:00]} 29. Nxc8 {[%clk 0:01:29]}  Rxc8 {[%clk 0:00:57]} 30. Rxf6 {[%clk 0:01:29]}  Kb8 {[%clk 0:00:31]} 31. Kd4 {[%clk 0:01:28]}  Rd8+ {[%clk 0:00:31]} 32. Rd6 {[%clk 0:01:28]}  Rf8 {[%clk 0:00:30]} 33. f3 {[%clk 0:01:28]}  g4 {[%clk 0:00:30]} 34. Ke3 {[%clk 0:01:26]}  gxf3 {[%clk 0:00:27]} 35. gxf3 {[%clk 0:01:26]}  Rc8 {[%clk 0:00:28]} 36. Rd5 {[%clk 0:01:26]}  Rc6 {[%clk 0:00:23]} 37. f4 {[%clk 0:01:26]}  Rh6 {[%clk 0:00:23]} 38. f5 {[%clk 0:01:24]}  Rxh2 {[%clk 0:00:10]} 39. f6 {[%clk 0:01:24]} 1-0


[Site "https://www.chess.com"]

[Event "Titled Tuesday Blitz May 30 Late 2023"]
[White "Gu, Ethan"]
[Black "Marra, Eduardo da Costa"]
[WhiteFideId "30909236"]
[BlackFideId "2106990"]
[WhiteElo "2245"]
[BlackElo "2252"]
[Result "0-1"]
[Round "01"]
[TimeControl "180+2"]
[Date "2023.05.31"]
[WhiteClock "0:00:00"]
[BlackClock "0:00:48"]

1. e4 {[%clk 0:02:57]}  c5 {[%clk 0:02:59]} 2. Nf3 {[%clk 0:02:57]}  e6 {[%clk 0:03:00]} 3. d4 {[%clk 0:02:57]}  cxd4 {[%clk 0:03:01]} 4. Nxd4 {[%clk 0:02:58]}  Nf6 {[%clk 0:03:01]} 5. Nc3 {[%clk 0:02:58]}  Nc6 {[%clk 0:03:01]} 6. Nxc6 {[%clk 0:02:57]}  bxc6 {[%clk 0:03:01]} 7. Bd3 {[%clk 0:02:57]}  d5 {[%clk 0:03:01]} 8. O-O {[%clk 0:02:56]}  Be7 {[%clk 0:03:02]} 9. Kh1 {[%clk 0:02:51]}  Nd7 {[%clk 0:03:00]} 10. f4 {[%clk 0:02:40]}  Nc5 {[%clk 0:02:59]} 11. Qg4 {[%clk 0:02:34]}  Nxd3 {[%clk 0:02:52]} 12. cxd3 {[%clk 0:02:35]}  g6 {[%clk 0:02:52]} 13. b3 {[%clk 0:02:27]}  f5 {[%clk 0:02:35]} 14. Qf3 {[%clk 0:02:21]}  O-O {[%clk 0:02:33]} 15. Bb2 {[%clk 0:02:20]}  Ba6 {[%clk 0:02:33]} 16. Rfe1 {[%clk 0:02:07]}  Qd7 {[%clk 0:02:32]} 17. Ne2 {[%clk 0:02:00]}  c5 {[%clk 0:02:15]} 18. exd5 {[%clk 0:01:55]}  exd5 {[%clk 0:02:13]} 19. d4 {[%clk 0:01:49]}  c4 {[%clk 0:02:13]} 20. Nc3 {[%clk 0:01:47]}  Bb7 {[%clk 0:01:54]} 21. bxc4 {[%clk 0:01:42]}  dxc4 {[%clk 0:01:55]} 22. d5 {[%clk 0:01:42]}  Bf6 {[%clk 0:01:55]} 23. Rad1 {[%clk 0:01:39]}  Rae8 {[%clk 0:01:49]} 24. Rxe8 {[%clk 0:01:31]}  Rxe8 {[%clk 0:01:48]} 25. Qf2 {[%clk 0:01:18]}  Ba8 {[%clk 0:01:37]} 26. h3 {[%clk 0:01:08]}  Qg7 {[%clk 0:01:32]} 27. Qd2 {[%clk 0:00:36]}  Rd8 {[%clk 0:01:31]} 28. d6 {[%clk 0:00:35]}  Qh6 {[%clk 0:01:27]} 29. Kh2 {[%clk 0:00:33]}  g5 {[%clk 0:01:14]} 30. Nd5 {[%clk 0:00:31]}  Bxb2 {[%clk 0:01:07]} 31. Qxb2 {[%clk 0:00:32]}  Rxd6 {[%clk 0:01:07]} 32. Qb8+ {[%clk 0:00:21]}  Qf8 {[%clk 0:00:55]} 33. Ne7+ {[%clk 0:00:16]}  Kf7 {[%clk 0:00:55]} 34. Qxf8+ {[%clk 0:00:16]}  Kxf8 {[%clk 0:00:56]} 35. Rxd6 {[%clk 0:00:16]}  Kxe7 {[%clk 0:00:55]} 36. Ra6 {[%clk 0:00:16]}  Be4 {[%clk 0:00:54]} 37. fxg5 {[%clk 0:00:12]}  c3 {[%clk 0:00:52]} 38. Ra3 {[%clk 0:00:12]}  c2 {[%clk 0:00:52]} 39. Rc3 {[%clk 0:00:12]}  Kd6 {[%clk 0:00:52]} 40. Kg3 {[%clk 0:00:13]}  Kd5 {[%clk 0:00:52]} 41. Kf4 {[%clk 0:00:09]}  Kd4 {[%clk 0:00:53]} 42. Rc7 {[%clk 0:00:08]}  Kd3 {[%clk 0:00:53]} 43. g4 {[%clk 0:00:08]}  fxg4 {[%clk 0:00:49]} 44. hxg4 {[%clk 0:00:06]}  Bg6 {[%clk 0:00:49]} 45. Rd7+ {[%clk 0:00:05]}  Ke2 {[%clk 0:00:49]} 46. Rc7 {[%clk 0:00:05]}  Kd2 {[%clk 0:00:50]} 47. Rd7+ {[%clk 0:00:04]}  Bd3 {[%clk 0:00:50]} 48. g6 {[%clk 0:00:02]}  hxg6 {[%clk 0:00:49]} 49. Rc7 {[%clk 0:00:00]}  c1=Q {[%clk 0:00:48]} 0-1


[Site "https://www.chess.com"]

[Event "Titled Tuesday Blitz May 30 Late 2023"]
[White "Keleberda, Tymur"]
[Black "Botez, Alexandra"]
[WhiteFideId "14174294"]
[BlackFideId "2603365"]
[WhiteElo "2198"]
[BlackElo "2040"]
[Result "1-0"]
[Round "01"]
[TimeControl "180+2"]
[Date "2023.05.31"]
[WhiteClock "0:00:10"]
[BlackClock "0:00:00"]

1. e4 {[%clk 0:02:59]}  e6 {[%clk 0:02:59]} 2. d4 {[%clk 0:02:59]}  d5 {[%clk 0:02:58]} 3. Nc3 {[%clk 0:02:59]}  Nf6 {[%clk 0:02:57]} 4. e5 {[%clk 0:02:59]}  Nfd7 {[%clk 0:02:57]} 5. f4 {[%clk 0:03:00]}  c5 {[%clk 0:02:57]} 6. Nf3 {[%clk 0:03:00]}  Nc6 {[%clk 0:02:57]} 7. Ne2 {[%clk 0:03:01]}  b5 {[%clk 0:02:45]} 8. c3 {[%clk 0:02:57]}  b4 {[%clk 0:02:43]} 9. cxb4 {[%clk 0:02:58]}  cxb4 {[%clk 0:02:40]} 10. g3 {[%clk 0:02:53]}  a5 {[%clk 0:02:36]} 11. Bh3 {[%clk 0:02:50]}  g6 {[%clk 0:02:32]} 12. O-O {[%clk 0:02:49]}  Ba6 {[%clk 0:02:29]} 13. Be3 {[%clk 0:02:48]}  Be7 {[%clk 0:02:14]} 14. Rc1 {[%clk 0:02:48]}  Rc8 {[%clk 0:02:11]} 15. Qd2 {[%clk 0:02:43]}  O-O {[%clk 0:02:04]} 16. Rc2 {[%clk 0:02:42]}  Qb6 {[%clk 0:02:04]} 17. Rfc1 {[%clk 0:02:40]}  Bxe2 {[%clk 0:02:04]} 18. Qxe2 {[%clk 0:02:39]}  Na7 {[%clk 0:02:04]} 19. Bf1 {[%clk 0:02:31]}  Rxc2 {[%clk 0:02:02]} 20. Rxc2 {[%clk 0:02:32]}  Rc8 {[%clk 0:02:02]} 21. Rxc8+ {[%clk 0:02:28]}  Nxc8 {[%clk 0:02:02]} 22. Qa6 {[%clk 0:02:21]}  Qxa6 {[%clk 0:02:00]} 23. Bxa6 {[%clk 0:02:22]}  Ncb6 {[%clk 0:01:58]} 24. b3 {[%clk 0:02:17]}  Kf8 {[%clk 0:01:54]} 25. Bb5 {[%clk 0:02:14]}  h6 {[%clk 0:01:48]} 26. Kf2 {[%clk 0:02:07]}  f5 {[%clk 0:01:38]} 27. exf6 {[%clk 0:02:01]}  Bxf6 {[%clk 0:01:38]} 28. Bd3 {[%clk 0:02:02]}  Kf7 {[%clk 0:01:37]} 29. h4 {[%clk 0:01:33]}  h5 {[%clk 0:01:29]} 30. Ne5+ {[%clk 0:01:18]}  Bxe5 {[%clk 0:01:28]} 31. fxe5 {[%clk 0:01:10]}  Nc8 {[%clk 0:01:23]} 32. Bb5 {[%clk 0:01:07]}  Ndb6 {[%clk 0:01:13]} 33. Bg5 {[%clk 0:00:54]}  Ne7 {[%clk 0:01:10]} 34. Bxe7 {[%clk 0:00:54]}  Kxe7 {[%clk 0:01:10]} 35. Ke3 {[%clk 0:00:53]}  Kf7 {[%clk 0:01:09]} 36. Kf4 {[%clk 0:00:53]}  Nc8 {[%clk 0:01:09]} 37. Kg5 {[%clk 0:00:50]}  Ne7 {[%clk 0:01:08]} 38. Bd3 {[%clk 0:00:38]}  Kg7 {[%clk 0:01:08]} 39. Bc2 {[%clk 0:00:35]}  Kf7 {[%clk 0:00:45]} 40. Kh6 {[%clk 0:00:36]}  Nc6 {[%clk 0:00:11]} 41. Bxg6+ {[%clk 0:00:35]}  Ke7 {[%clk 0:00:09]} 42. Kxh5 {[%clk 0:00:34]}  Nxd4 {[%clk 0:00:10]} 43. Kg5 {[%clk 0:00:22]}  Nb5 {[%clk 0:00:04]} 44. h5 {[%clk 0:00:21]}  Kf8 {[%clk 0:00:04]} 45. h6 {[%clk 0:00:21]}  Kg8 {[%clk 0:00:02]} 46. Kf6 {[%clk 0:00:20]}  Nc7 {[%clk 0:00:01]} 47. Ke7 {[%clk 0:00:19]}  d4 {[%clk 0:00:01]} 48. Be4 {[%clk 0:00:19]}  Nd5+ {[%clk 0:00:00]} 49. Kxe6 {[%clk 0:00:10]} 1-0


[Site "https://www.chess.com"]

[Event "Titled Tuesday Blitz May 30 Late 2023"]
[White "Martic, Ivan"]
[Black "Osmonbekov, Talaibek"]
[WhiteFideId "929301"]
[BlackFideId "2017253"]
[WhiteElo "2360"]
[BlackElo "2135"]
[Result "1-0"]
[Round "01"]
[TimeControl "180+2"]
[Date "2023.05.31"]
[WhiteClock "0:01:18"]
[BlackClock "0:00:00"]

1. c4 {[%clk 0:02:59]}  e5 {[%clk 0:02:59]} 2. Nc3 {[%clk 0:02:59]}  d6 {[%clk 0:02:59]} 3. g3 {[%clk 0:02:56]}  f5 {[%clk 0:02:59]} 4. Bg2 {[%clk 0:02:53]}  Nf6 {[%clk 0:03:00]} 5. d3 {[%clk 0:02:47]}  Be7 {[%clk 0:02:59]} 6. Bg5 {[%clk 0:02:45]}  O-O {[%clk 0:02:58]} 7. Nf3 {[%clk 0:02:45]}  Nbd7 {[%clk 0:02:54]} 8. O-O {[%clk 0:02:43]}  Qe8 {[%clk 0:02:53]} 9. b4 {[%clk 0:02:28]}  Qh5 {[%clk 0:02:52]} 10. Rc1 {[%clk 0:02:27]}  c6 {[%clk 0:02:16]} 11. Bxf6 {[%clk 0:02:20]}  Nxf6 {[%clk 0:02:15]} 12. b5 {[%clk 0:02:21]}  Bd7 {[%clk 0:02:09]} 13. bxc6 {[%clk 0:02:20]}  bxc6 {[%clk 0:02:09]} 14. Rb1 {[%clk 0:02:19]}  Rab8 {[%clk 0:02:03]} 15. Qa4 {[%clk 0:02:12]}  e4 {[%clk 0:01:46]} 16. Rxb8 {[%clk 0:02:10]}  Rxb8 {[%clk 0:01:43]} 17. dxe4 {[%clk 0:02:10]}  fxe4 {[%clk 0:01:40]} 18. Qxa7 {[%clk 0:02:10]}  Rd8 {[%clk 0:01:30]} 19. Nd4 {[%clk 0:02:04]}  c5 {[%clk 0:01:22]} 20. Nc6 {[%clk 0:01:54]}  Re8 {[%clk 0:01:03]} 21. Nxe7+ {[%clk 0:01:49]}  Rxe7 {[%clk 0:01:04]} 22. Qb8+ {[%clk 0:01:44]}  Re8 {[%clk 0:00:56]} 23. Qxd6 {[%clk 0:01:44]}  Bh3 {[%clk 0:00:56]} 24. Nd5 {[%clk 0:01:29]}  Ng4 {[%clk 0:00:51]} 25. Nf4 {[%clk 0:01:25]}  Qf5 {[%clk 0:00:17]} 26. Bxh3 {[%clk 0:01:22]}  e3 {[%clk 0:00:00]} 27. f3 {[%clk 0:01:18]} 1-0


[Site "https://www.chess.com"]